Workbook

Sheet Income Advantage
B1: =CELL("filename") -> S:\Marketing\REFERRED MARKETING\2016\Q1\Financial Illustration\FINAL\[Financial Illustration_IA.xlsm]Income Advantage | I1: Annual | J1: 2
I2: Semi Annual
I3: Qtrly
I4: Mthly
L8: `
F9: Financial Illustration
F10: Income Advantage
F13: To begin, ensure you clicked "Enable Content" at the top of your screen or turned your Macros on. Click here to learn how to enable macros.
F15: Inputs | H15: Additional Tools
E16: Estimated Value of Home | F16: 500000 | J16: Click the button to calculate how much your client could receive
E17: HomEquity Bank Mortgage Amount | F17: 300000
E18: Initial Advance Amount | F18: 100000 | J18: Click the button to view HomEquity Bank's current rates
E19: Interest Rate for Initial Advance (Lump Sum Account) | F19: 0.0499
E21: Planned Advance Amount (per Month) | F21: 2000 | J21: Click the button for current home appreciation statistics
E22: Number of Years to Show in Graph (max. 15) | F22: 8 | J22: (Please note this link will take you to an external site.)
E23: Interest Rate for Planned Advances (Planned Advance Account) | F23: 0.042
E25: Home Appreciation Rate (per annum) | F25: 0.04
B31: Year | C31: Lump Sum Account Initial Advance Amount | D31: Lump Sum Account Interest Rate | E31: Planned Advance Account Annual Advance Amount | F31: Planned Advance Account Interest Rate | G31: Accrued Annual Interest | H31: Estimated End of Year Mortgage Balance | I31: Estimated Future Home Value | J31: Estimated Remaining Home Equity | T31: Int. Accum. Factor | W31: End of Year Planned Advance Principal | Y31: Beginning of Year Initial Advance Loan Balance | Z31: Beginning of Year Planned Advance Loan Balance | AB31: Yearly Initial Advance Interest | AC31: Yearly Planned Advance Interest | AD31: End of Year Initial Advance Loan Balance | AE31: End of Year Planned Advance Loan Balance | BN31: Total End of Year Principal | BO31: Beginning of Year Loan Balance
B32: 0 | C32: =+$F$18 -> 100000 | D32: =F19 -> 0.0499 | E32: 0 | F32: =+$F$23 -> 0.042 | G32: =+AB32+AC32 -> 0 | H32: =+C32 -> 100000 | I32: =F16 -> 500000 | J32: =I32-$H32 -> 400000 | AB32: 0 | BN32: =+$C$32+W32 -> 100000
B33: 1 | C33: 100000 | D33: =D32 -> 0.0499 | E33: =+IF($C$32+$F$21*12*B33<=$F$17,$F$21*12,$F$17-($C$32+$F$21*12*B32)) -> 24000 | F33: 0.042 | G33: 6070.83425 | H33: =+AE33+AD33 -> 130070.8342 | I33: =I32*(1+$F$25) -> 520000 | J33: 389929.1658 | T33: 2 | W33: =+IF(E33>0,E33+W32,W32) -> 24000 | Y33: =H32 -> 100000 | Z33: =+AE32 -> 0 | AB33: =(((1+(D33/T33))^T33)*Y33)-Y33 -> 5052.25025 | AC33: =((1+EFFECT(F33,2))*E33)-W33 -> 1018.584 | AD33: =+Y33+AB33 -> 105052.2502 | AE33: =+W33+AC33 -> 25018.584 | BN33: 124000 | BO33: =+C32 -> 100000
B34: 2 | C34: 100000 | D34: 0.0499 | E34: 24000 | F34: 0.042 | G34: 7387.900299 | H34: 161458.7345 | I34: 540800 | J34: 379341.2655 | T34: 2 | W34: 48000 | Y34: =+AD33 -> 105052.2502 | Z34: 25018.584 | AB34: 5307.502576 | AC34: =IF(E34>0,(1+EFFECT(F34,2))*(Z34+E34)-(AE33+E34),(1+EFFECT(F34,2))*Z34-Z34) -> 2080.397724 | AD34: 110359.7528 | AE34: =+Z34+AC34+W34-W33 -> 51098.98172 | BN34: 148000 | BO34: =+Y34+Z34 -> 130070.8342
B35: 3 | C35: 100000 | D35: 0.0499 | E35: 24000 | F35: 0.042 | G35: 8762.926771 | H35: 194221.6613 | I35: 562432 | J35: 368210.3387 | T35: 2 | W35: 72000 | Y35: 110359.7528 | Z35: 51098.98172 | AB35: 5575.650888 | AC35: 3187.275883 | AD35: 115935.4037 | AE35: 78286.25761 | BN35: 172000 | BO35: 161458.7345
B36: 4 | C36: 100000 | D36: 0.0499 | E36: 24000 | F36: 0.042 | G36: 10198.47778 | H36: 228420.1391 | I36: 584929.28 | J36: 356509.1409 | T36: 2 | W36: 96000 | Y36: 115935.4037 | Z36: 78286.25761 | AB36: 5857.346724 | AC36: 4341.131059 | AD36: 121792.7504 | AE36: 106627.3887 | BN36: 196000 | BO36: 194221.6613
B37: 5 | C37: 100000 | D37: 0.0499 | E37: 24000 | F37: 0.042 | G37: 11697.23154 | H37: 264117.3706 | I37: 608326.4512 | J37: 344209.0806 | T37: 2 | W37: 120000 | Y37: 121792.7504 | Z37: 106627.3887 | AB37: 6153.274538 | AC37: 5543.957002 | AD37: 127946.025 | AE37: 136171.3457 | BN37: 220000 | BO37: 228420.1391
B38: 6 | C38: 100000 | D38: 0.0499 | E38: 24000 | F38: 0.042 | G38: 13261.98545 | H38: 301379.3561 | I38: 632659.5092 | J38: 331280.1532 | T38: 2 | W38: 144000 | Y38: 127946.025 | Z38: 136171.3457 | AB38: 6464.153367 | AC38: 6797.832082 | AD38: 134410.1783 | AE38: 166969.1777 | BN38: 244000 | BO38: 264117.3706
B39: 7 | C39: 100000 | D39: 0.0499 | E39: 24000 | F39: 0.042 | G39: 14895.66144 | H39: 340275.0175 | I39: 657965.8896 | J39: 317690.8721 | S39: 2 | T39: 2 | W39: 168000 | Y39: 134410.1783 | Z39: 166969.1777 | AB39: 6790.738571 | AC39: 8104.922873 | AD39: 141200.9169 | AE39: 199074.1006 | BN39: 268000 | BO39: 301379.3561
B40: 8 | C40: 100000 | D40: 0.0499 | E40: 24000 | F40: 0.042 | G40: 16601.31158 | H40: 380876.3291 | I40: 684284.5252 | J40: 303408.1961 | S40: 2 | T40: 2 | W40: 192000 | Y40: 141200.9169 | Z40: 199074.1006 | AB40: 7133.823678 | AC40: 9467.487905 | AD40: 148334.7406 | AE40: 232541.5885 | BN40: 292000 | BO40: 340275.0175
B41: 9 | C41: 100000 | D41: 0.0499 | E41: 8000 | F41: 0.042 | G41: 17703.06786 | H41: 406579.397 | I41: 711655.9062 | J41: 305076.5092 | S41: 2 | T41: 2 | W41: 200000 | Y41: 148334.7406 | Z41: 232541.5885 | AB41: 7494.242302 | AC41: 10208.82556 | AD41: 155828.9829 | AE41: 250750.4141 | BN41: 300000 | BO41: 380876.3291
B42: 10 | C42: 100000 | D42: 0.0499 | E42: -16000 | F42: 0.042 | G42: 18514.9685 | H42: 425094.3655 | I42: 740122.1425 | J42: 315027.777 | S42: 2 | T42: 2 | W42: 200000 | Y42: 155828.9829 | Z42: 250750.4141 | AB42: 7872.870178 | AC42: 10642.09832 | AD42: 163701.8531 | AE42: 261392.5124 | BN42: 300000 | BO42: 406579.397
B43: 11 | C43: 100000 | D43: 0.0499 | E43: -40000 | F43: 0.042 | G43: 19364.3869 | H43: 444458.7524 | I43: 769727.0282 | J43: 325268.2758 | S43: 2 | T43: 2 | W43: 200000 | Y43: 163701.8531 | Z43: 261392.5124 | AB43: 8270.627281 | AC43: 11093.75962 | AD43: 171972.4804 | AE43: 272486.272 | BN43: 300000 | BO43: 425094.3655
B44: 12 | C44: 100000 | D44: 0.0499 | E44: -64000 | F44: 0.042 | G44: 20253.06994 | H44: 464711.8223 | I44: 800516.1093 | J44: 335804.287 | T44: 2 | W44: 200000 | Y44: 171972.4804 | Z44: 272486.272 | AB44: 8688.480069 | AC44: 11564.58987 | AD44: 180660.9604 | AE44: 284050.8619 | BN44: 300000 | BO44: 444458.7524
B45: 13 | C45: 100000 | D45: 0.0499 | E45: -88000 | F45: 0.042 | G45: 21182.84645 | H45: 485894.6688 | I45: 832536.7537 | J45: 346642.0849 | T45: 2 | W45: 200000 | Y45: 180660.9604 | Z45: 284050.8619 | AB45: 9127.443825 | AC45: 12055.40263 | AD45: 189788.4042 | AE45: 296106.2645 | BN45: 300000 | BO45: 464711.8223
B46: 14 | C46: 100000 | D46: 0.0499 | E46: -112000 | F46: 0.042 | G46: 22155.6311 | H46: 508050.2999 | I46: 865838.2238 | J46: 357787.9239 | T46: 2 | W46: 200000 | Y46: 189788.4042 | Z46: 296106.2645 | AB46: 9588.585128 | AC46: 12567.04597 | AD46: 199376.9894 | AE46: 308673.3105 | BN46: 300000 | BO46: 485894.6688
B47: 15 | C47: 100000 | D47: 0.0499 | E47: -136000 | F47: 0.042 | G47: 23173.42842 | H47: 531223.7283 | I47: 900471.7528 | J47: 369248.0245 | T47: 2 | W47: 200000 | Y47: 199376.9894 | Z47: 308673.3105 | AB47: 10073.02444 | AC47: 13100.40397 | AD47: 209450.0138 | AE47: 321773.7145 | BN47: 300000 | BO47: 508050.2999
B49: Year | C49: 0 | D49: 1 | E49: 2 | F49: 3 | G49: 4 | H49: 5 | I49: 6 | J49: 7 | K49: 8 | L49: 9 | M49: 10 | N49: 11 | O49: 12 | P49: 13 | Q49: 14 | R49: 15
B50: Initial Advance | C50: =+IF(C49<=$F$22,BN32,0) -> 100000 | D50: =+IF(D49<=$F$22,BN33,0) -> 124000 | E50: =+IF(E49<=$F$22,BN34,0) -> 148000 | F50: =+IF(F49<=$F$22,BN35,0) -> 172000 | G50: =+IF(G49<=$F$22,BN36,0) -> 196000 | H50: =+IF(H49<=$F$22,BN37,0) -> 220000 | I50: =+IF(I49<=$F$22,BN38,0) -> 244000 | J50: =+IF(J49<=$F$22,BN39,0) -> 268000 | K50: =+IF(K49<=$F$22,BN40,0) -> 292000 | L50: =+IF(L49<=$F$22,BN41,0) -> 0 | M50: =+IF(M49<=$F$22,BN42,0) -> 0 | N50: =+IF(N49<=$F$22,BN43,0) -> 0 | O50: =+IF(O49<=$F$22,BN44,0) -> 0 | P50: =+IF(P49<=$F$22,BN45,0) -> 0 | Q50: =+IF(Q49<=$F$22,BN46,0) -> 0 | R50: =+IF(R49<=$F$22,BN47,0) -> 0
B51: Home Value | C51: =+IF(C49<=$F$22,I32,0) -> 500000 | D51: =+IF(D49<=$F$22,I33,0) -> 520000 | E51: =+IF(E49<=$F$22,I34,0) -> 540800 | F51: =+IF(F49<=$F$22,I35,0) -> 562432 | G51: =+IF(G49<=$F$22,I36,0) -> 584929.28 | H51: =+IF(H49<=$F$22,I37,0) -> 608326.4512 | I51: =+IF(I49<=$F$22,I38,0) -> 632659.5092 | J51: =+IF(J49<=$F$22,I39,0) -> 657965.8896 | K51: =+IF(K49<=$F$22,I40,0) -> 684284.5252 | L51: =+IF(L49<=$F$22,I41,0) -> 0 | M51: =+IF(M49<=$F$22,I42,0) -> 0 | N51: =+IF(N49<=$F$22,I43,0) -> 0 | O51: =+IF(O49<=$F$22,I44,0) -> 0 | P51: =+IF(P49<=$F$22,I45,0) -> 0 | Q51: =+IF(Q49<=$F$22,I46,0) -> 0 | R51: =+IF(R49<=$F$22,I47,0) -> 0
B52: Loan Balance | C52: =+IF(C49<=$F$22,H32,0) -> 100000 | D52: =+IF(D49<=$F$22,H33,0) -> 130070.8342 | E52: =+IF(E49<=$F$22,H34,0) -> 161458.7345 | F52: =+IF(F49<=$F$22,H35,0) -> 194221.6613 | G52: =+IF(G49<=$F$22,H36,0) -> 228420.1391 | H52: =+IF(H49<=$F$22,H37,0) -> 264117.3706 | I52: =+IF(I49<=$F$22,H38,0) -> 301379.3561 | J52: =+IF(J49<=$F$22,H39,0) -> 340275.0175 | K52: =+IF(K49<=$F$22,H40,0) -> 380876.3291 | L52: =+IF(L49<=$F$22,H41,0) -> 0 | M52: =+IF(M49<=$F$22,H42,0) -> 0 | N52: =+IF(N49<=$F$22,H43,0) -> 0 | O52: =+IF(O49<=$F$22,H44,0) -> 0 | P52: =+IF(P49<=$F$22,H45,0) -> 0 | Q52: =+IF(Q49<=$F$22,H46,0) -> 0 | R52: =+IF(R49<=$F$22,H47,0) -> 0
B53: Home Equity | C53: =+C51-C52 -> 400000 | D53: =+D51-D52 -> 389929.1658 | E53: 379341.2655 | F53: 368210.3387 | G53: 356509.1409 | H53: 344209.0806 | I53: 331280.1532 | J53: 317690.8721 | K53: 303408.1961 | L53: 0 | M53: 0 | N53: 0 | O53: 0 | P53: 0 | Q53: 0 | R53: =+R51-R52 -> 0
B54: Interest | C54: =+IF(XStart<=Years,AB32,0) -> 0 | D54: =+D52-D50 -> 6070.83425 | E54: =+E52-E50 -> 13458.73455 | F54: 22221.66132 | G54: 32420.1391 | H54: 44117.37064 | I54: 57379.35609 | J54: 72275.01754 | K54: 88876.32912 | L54: 0 | M54: 0 | N54: 0 | O54: 0 | P54: 0 | Q54: 0 | R54: 0
B84: *Calculations and chart are for illustration purposes only. External factors not accounted for in the calculations may affect future projections and are based on certain assumptions. HomEquity Bank may change or update calculations without notification.This information is not intended as specific financial, accounting, legal, or tax advice for any individual and should not be relied on as such.

Sheet AF Value Calculator (hidden)
A1: =CELL("filename") -> S:\Marketing\REFERRED MARKETING\2016\Q1\Financial Illustration\FINAL\[Financial Illustration_IA.xlsm]Income Advantage | K1: Annual | L1: 2
K2: Semi Annual
K3: Qtrly
K4: Mthly
A6: =CELL("filename") -> S:\Marketing\REFERRED MARKETING\2016\Q1\Financial Illustration\FINAL\[Financial Illustration_IA.xlsm]Income Advantage
A7: Estimated Fair Market Value of Home | B7: 350000
A8: CHIP Maximum | B8: 137000
A9: HIP Portion | B9: =B8-B10 -> 124904
A10: Additional Finance Portion | B10: 12096
A11: # of AF Payments | B11: 98
A12: Monthly Payments | B12: 171
A13: Interest Rate | B13: 0.0815
A14: Reset Date
A15: Interest Accumulation
K17: 0.02 | M17: 0.04 | O17: 0.06
A18: AF Calculator | K18: Home | L18: Remaining | M18: Home | N18: Remaining | O18: Home | P18: Remaining
A19: Year | B19: Jan 1 Cost | C19: Interest Rate | D19: Int. Accum. Factor | E19: Payback of AF | F19: Yearly Interest | G19: Accumulated Cost | H19: CHIP App | I19: Var | J19: % Var | K19: Value | L19: Home Equity | M19: Value | N19: Home Equity | O19: Value | P19: Home Equity
A20: 0 | C20: =B13 -> 0.0815 | E20: 0 | F20: 0 | G20: =B8 -> 137000 | H20: 137000 | I20: =H20-G20 -> 0 | K20: =B7 -> 350000 | L20: =K20-$G20 -> 213000 | M20: =B7 -> 350000 | N20: =M20-$G20 -> 213000 | O20: =B7 -> 350000 | P20: =O20-$G20 -> 213000
A21: 1 | B21: =G20 -> 137000 | C21: =C20 -> 0.0815 | D21: =IF($L$1=1,1,IF($L$1=2,2,IF($L$1=3,4,IF($L$1=4,12,0)))) -> 2 | E21: =N67 -> 1881 | F21: =(((1+(C21/D21))^D21)*(B21-E21))-G20 -> 9355.572044 | G21: =G20+F21 -> 146355.572 | H21: 146387 | I21: =H21-G21 -> 31.42795556 | J21: =I21/H21 -> 0.0002146908917 | K21: =K20*(1+$K$17) -> 357000 | L21: 210644.428 | M21: =M20*(1+$M$17) -> 364000 | N21: 217644.428 | O21: =O20*(1+$O$17) -> 371000 | P21: 224644.428
A22: 2 | B22: 146355.572 | C22: 0.0865 | D22: 2 | E22: 2052 | F22: 10700.18783 | G22: 157055.7599 | H22: 157162 | I22: 106.2401232 | J22: =I22/H22 -> 0.0006759911635 | K22: 364140 | L22: 207084.2401 | M22: 378560 | N22: 221504.2401 | O22: 393260 | P22: 236204.2401
A23: 3 | B23: 157055.7599 | C23: 0.0865 | D23: 2 | E23: 2052 | F23: 11645.76945 | G23: 168701.5293 | H23: 168893 | I23: 191.4706733 | J23: 0.001133680338 | K23: 371422.8 | L23: 202721.2707 | M23: 393702.4 | N23: 225000.8707 | O23: 416855.6 | P23: 248154.0707
A24: 4 | B24: 168701.5293 | C24: 0.084 | D24: 2 | E24: 2052 | F24: 12240.53023 | G24: 180942.0596 | H24: 181246 | I24: 303.9404401 | J24: 0.001676949782 | K24: 378851.256 | L24: 197909.1964 | M24: 409450.496 | N24: 228508.4364 | O24: 441866.936 | P24: 260924.8764
A25: 5 | B25: 180942.0596 | C25: 0.0815 | D25: 2 | E25: 2052 | F25: 12824.59798 | G25: 193766.6575 | H25: 194205 | I25: 438.3424615 | J25: 0.002257112131 | K25: 386428.2811 | L25: 192661.6236 | M25: 425828.5158 | N25: 232061.8583 | O25: 468378.9522 | P25: 274612.2946
A26: 6 | B26: 193766.6575 | C26: 0.079 | D26: 2 | E26: 2052 | F26: 13392.58074 | G26: 207159.2383 | H26: 207748 | I26: 588.7617215 | J26: 0.002834018722 | K26: 394156.8467 | L26: 186997.6085 | M26: 442861.6565 | N26: 235702.4182 | O26: 496481.6893 | P26: 289322.451
A27: 7 | B27: 207159.2383 | C27: 0.0765 | D27: 2 | E27: 2052 | F27: 13938.78844 | G27: 221098.0267 | H27: 221845 | I27: 746.9732844 | J27: 0.003367095424 | K27: 402039.9837 | L27: 180941.957 | M27: 460576.1227 | N27: 239478.096 | O27: 526270.5906 | P27: 305172.5639
A28: 8 | B28: 221098.0267 | C28: 0.074 | D28: 2 | E28: 2052 | F28: 14457.27999 | G28: 235555.3067 | H28: 236458 | I28: 902.6932969 | J28: 0.003817562937 | K28: 410080.7834 | L28: 174525.4766 | M28: 478999.1676 | N28: 243443.8609 | O28: 557846.8261 | P28: 322291.5194
A29: 9 | B29: 235555.3067 | C29: 0.0725 | D29: 2 | E29: 513 | F29: 16836.42752 | G29: 252391.7342 | H29: 253507 | I29: 1115.26578 | J29: 0.004399349051 | K29: 418282.399 | L29: 165890.6648 | M29: 498159.1343 | N29: 245767.4001 | O29: 591317.6357 | P29: 338925.9014
A30: 10 | B30: 252391.7342 | C30: 0.0725 | D30: 2 | F30: =(((1+(C30/D30))^D30)*B30)-G29 -> 18630.05924 | G30: 271021.7935 | H30: 272220 | I30: 1198.206536 | J30: 0.00440161096 | K30: 426648.047 | L30: 155626.2535 | M30: 518085.4997 | N30: 247063.7063 | O30: 626796.6938 | P30: 355774.9003
A31: 11 | B31: 271021.7935 | C31: 0.0725 | D31: 2 | F31: 20005.2196 | G31: 291027.0131 | I31: =H31-G31 -> -291027.0131 | K31: 435181.0079 | L31: 144153.9949 | M31: 538808.9197 | N31: 247781.9066 | O31: 664404.4954 | P31: 373377.4824
A32: 12 | B32: 291027.0131 | C32: 0.0725 | D32: 2 | F32: 21481.88613 | G32: 312508.8992 | I32: -312508.8992 | K32: 443884.6281 | L32: 131375.7289 | M32: 560361.2765 | N32: 247852.3773 | O32: 704268.7651 | P32: 391759.8659
A33: 13 | B33: 312508.8992 | C33: 0.0725 | D33: 2 | F33: 23067.55142 | G33: 335576.4506 | I33: -335576.4506 | K33: 452762.3207 | L33: 117185.87 | M33: 582775.7276 | N33: 247199.2769 | O33: 746524.8911 | P33: 410948.4404
A34: 14 | B34: 335576.4506 | C34: 0.0725 | D34: 2 | F34: 24770.2611 | G34: 360346.7117 | I34: -360346.7117 | K34: 461817.5671 | L34: 101470.8554 | M34: 606086.7567 | N34: 245740.0449 | O34: 791316.3845 | P34: 430969.6728
A35: 15 | B35: 360346.7117 | C35: 0.0725 | D35: 2 | F35: 26598.6547 | G35: 386945.3664 | H35: 388656 | I35: 1710.633586 | J35: 0.004401407892 | K35: 471053.9184 | L35: 84108.552 | M35: 630330.2269 | N35: 243384.8605 | O35: 838795.3676 | P35: 451850.0012
A38: AF Portion
A39: Year | B39: Jan 1 Cost | C39: Pay Periods | D39: Yearly Payments | M39: Interest Rate | N39: Int. Accum. Factor | O39: Yearly Interest | P39: Accumulated Cost
A40: 0 | M40: =C20 -> 0.0815 | O40: 0 | P40: =B10 -> 12096
A41: 1 | B41: =P40 -> 12096 | C41: 11 | D41: =IF(VLOOKUP(A41,$A$66:$N$81,14,FALSE)>0,VLOOKUP(A41,$A$66:$N$81,14,FALSE),0) -> 1881 | F41: =B41-D41 -> 10215 | G41: =F41+G21 -> 156570.572 | K41: =146387-G41 -> -10183.57204 | M41: 0.0815 | N41: =IF($L$1=1,1,IF($L$1=2,2,IF($L$1=3,4,IF($L$1=4,12,0)))) -> 2 | O41: =P40-(((1+(M41/N41))^N41)*(B41-D41)) -> 1031.514854 | P41: =P40-O41 -> 11064.48515
A42: 2 | B42: =F41 -> 10215 | C42: 12 | D42: 2052 | F42: 8163 | G42: 165218.7599 | K42: =157162-G42 -> -8056.759877 | M42: 0.0865 | N42: 2 | O42: 2180.116244 | P42: 8884.368902
A43: 3 | B43: 8163 | C43: 12 | D43: 2052 | F43: 6111 | G43: 174812.5293 | K43: =168893-G43 -> -5919.529327 | M43: 0.0865 | N43: 2 | O43: 2233.336394 | P43: 6651.032507
A44: 4 | B44: 6111 | C44: 12 | D44: 2052 | F44: 4059 | G44: 185001.0596 | K44: =181246-G44 -> -3755.05956 | M44: 0.084 | N44: 2 | O44: 2243.916431 | P44: 4407.116076
A45: 5 | B45: 4059 | C45: 12 | D45: 2052 | F45: 2007 | G45: 195773.6575 | K45: =194205-G45 -> -1568.657539 | M45: 0.0815 | N45: 2 | O45: 2233.212827 | P45: 2173.903249
A46: 6 | B46: 2007 | C46: 12 | D46: 2052 | F46: -45 | G46: 207114.2383 | K46: =207748-G46 -> 633.7617215 | M46: 0.079 | N46: 2 | O46: 2222.52846 | P46: -48.62521125
A47: 7 | B47: -45 | C47: 12 | D47: 2052 | F47: -2097 | G47: 219001.0267 | K47: =221845-G47 -> 2843.973284 | M47: 0.0765 | N47: 2 | O47: 2211.863331 | P47: -2260.488542
A48: 8 | B48: -2097 | C48: 12 | D48: 2052 | F48: -4149 | G48: 231406.3067 | K48: =236458-G48 -> 5051.693297 | M48: 0.074 | N48: 2 | O48: 2201.217439 | P48: -4461.705981
A49: 9 | B49: -4149 | C49: 12 | D49: 513 | F49: -4662 | G49: 247729.7342 | K49: =253507-G49 -> 5777.26578 | M49: 0.0725 | N49: 2 | O49: 544.4151784 | P49: -5006.121159
A50: 10 | B50: 0 | C50: 12 | D50: 0 | M50: 0.0725 | N50: 2 | O50: 0 | P50: 0
A51: 11 | B51: 0 | C51: 12 | D51: 0 | M51: 0.0725 | N51: 2 | O51: =P50-(((1+(M51/N51))^N51)*(B51-D51)) -> 0 | P51: =P50-O51 -> 0
A52: 12 | B52: 0 | C52: 12 | D52: 0 | M52: 0.0725 | N52: 2 | O52: =P51-(((1+(M52/N52))^N52)*(B52-D52)) -> 0 | P52: =P51-O52 -> 0
A53: 13 | B53: 0 | C53: 12 | D53: 0 | M53: 0.0725 | N53: 2 | O53: =P52-(((1+(M53/N53))^N53)*(B53-D53)) -> 0 | P53: =P52-O53 -> 0
A54: 14 | B54: 0 | C54: 12 | D54: 0 | M54: 0.0725 | N54: 2 | O54: =P53-(((1+(M54/N54))^N54)*(B54-D54)) -> 0 | P54: =P53-O54 -> 0
A55: 15 | B55: 0 | C55: 12 | D55: 0 | M55: 0.0725 | N55: 2 | O55: =P54-(((1+(M55/N55))^N55)*(B55-D55)) -> 0 | P55: =P54-O55 -> 0
A64: Payments | B64: Month
A65: Year | B65: 1 | C65: 2 | D65: 3 | E65: 4 | F65: 5 | G65: 6 | H65: 7 | I65: 8 | J65: 9 | K65: 10 | L65: 11 | M65: 12
A66: 0
A67: 1 | C67: =$B$12 -> 171 | D67: =$B$12 -> 171 | E67: 171 | F67: 171 | G67: 171 | H67: 171 | I67: 171 | J67: 171 | K67: 171 | L67: 171 | M67: 171 | N67: =SUM(B67:M67) -> 1881
A68: 2 | B68: =$B$12 -> 171 | C68: =$B$12 -> 171 | D68: 171 | E68: 171 | F68: 171 | G68: 171 | H68: 171 | I68: 171 | J68: 171 | K68: 171 | L68: 171 | M68: 171 | N68: 2052
A69: 3 | B69: =$B$12 -> 171 | C69: 171 | D69: 171 | E69: 171 | F69: 171 | G69: 171 | H69: 171 | I69: 171 | J69: 171 | K69: 171 | L69: 171 | M69: 171 | N69: 2052
A70: 4 | B70: 171 | C70: 171 | D70: 171 | E70: 171 | F70: 171 | G70: 171 | H70: 171 | I70: 171 | J70: 171 | K70: 171 | L70: 171 | M70: 171 | N70: 2052
A71: 5 | B71: 171 | C71: 171 | D71: 171 | E71: 171 | F71: 171 | G71: 171 | H71: 171 | I71: 171 | J71: 171 | K71: 171 | L71: 171 | M71: 171 | N71: 2052
A72: 6 | B72: 171 | C72: 171 | D72: 171 | E72: 171 | F72: 171 | G72: 171 | H72: 171 | I72: 171 | J72: 171 | K72: 171 | L72: 171 | M72: 171 | N72: 2052
A73: 7 | B73: 171 | C73: 171 | D73: 171 | E73: 171 | F73: 171 | G73: 171 | H73: 171 | I73: 171 | J73: 171 | K73: 171 | L73: 171 | M73: 171 | N73: 2052
A74: 8 | B74: 171 | C74: 171 | D74: 171 | E74: 171 | F74: 171 | G74: 171 | H74: 171 | I74: 171 | J74: 171 | K74: 171 | L74: 171 | M74: 171 | N74: 2052
A75: 9 | B75: 171 | C75: 171 | D75: 171 | N75: 513
A76: 10 | N76: 0
A77: 11 | N77: 0
A78: 12 | N78: 0
A79: 13 | N79: 0
A80: 14 | N80: 0
A81: 15 | N81: 0
N82: =SUM(N67:N81) -> 16758

Sheet HIP Value Calculator & AF (hidden)
A1: =CELL("filename") -> S:\Marketing\REFERRED MARKETING\2016\Q1\Financial Illustration\FINAL\[Financial Illustration_IA.xlsm]Income Advantage | H1: Annual | I1: 2
H2: Semi Annual
H3: Qtrly
H4: Mthly
A6: =CELL("filename") -> S:\Marketing\REFERRED MARKETING\2016\Q1\Financial Illustration\FINAL\[Financial Illustration_IA.xlsm]Income Advantage
A7: Estimated Fair Market Value of Home | C7: 350000
A8: CHIP Maximum | C8: 124904
A9: Interest Rate | C9: 0.0815
A10: Reset Date
A11: Payment Periods | C11: 98
A12: Interest Accumulation
H14: 0.06 | J14: 0.04 | L14: 0.02
A15: HIP Value | H15: Home | I15: Remaining | J15: Home | K15: Remaining | L15: Home | M15: Remaining
A16: Year | C16: Jan 1 Cost | D16: Interest Rate | E16: Int. Accum. Factor | F16: Yearly Interest | G16: Accumulated Cost | H16: Value | I16: Home Equity | J16: Value | K16: Home Equity | L16: Value | M16: Home Equity
A17: 0 | D17: =C9 -> 0.0815 | F17: 0 | G17: =C8 -> 124904 | H17: =C7 -> 350000 | I17: =H17-$G17 -> 225096 | J17: =C7 -> 350000 | K17: =J17-$G17 -> 225096 | L17: =C7 -> 350000 | M17: =L17-$G17 -> 225096
A18: 1 | C18: =G17 -> 124904 | D18: =D17 -> 0.0815 | E18: =IF($I$1=1,1,IF($I$1=2,2,IF($I$1=3,4,IF($I$1=4,12,0)))) -> 2 | F18: =(((1+(D18/E18))^E18)*C18)-G17 -> 10387.0869 | G18: =G17+F18 -> 135291.0869 | H18: =H17*(1+$H$14) -> 371000 | I18: =H18-$G18 -> 235708.9131 | J18: =J17*(1+$J$14) -> 364000 | K18: 228708.9131 | L18: =L17*(1+$L$14) -> 357000 | M18: 221708.9131
A19: 2 | C19: 135291.0869 | D19: 0.0865 | E19: 2 | F19: 11955.74945 | G19: =G18+F19 -> 147246.8363 | H19: 393260 | I19: 246013.1637 | J19: 378560 | K19: 231313.1637 | L19: 364140 | M19: 216893.1637
A20: 3 | C20: 147246.8363 | D20: 0.0865 | E20: 2 | F20: 13012.28575 | G20: 160259.1221 | H20: 416855.6 | I20: 256596.4779 | J20: 393702.4 | K20: 233443.2779 | L20: =L19*(1+$L$14) -> 371422.8 | M20: 211163.6779
A21: 4 | C21: 160259.1221 | D21: 0.084 | E21: 2 | F21: =(((1+(D21/E21))^E21)*C21)-G20 -> 13744.46335 | G21: 174003.5855 | H21: 441866.936 | I21: 267863.3505 | J21: 409450.496 | K21: 235446.9105 | L21: 378851.256 | M21: 204847.6705
A22: 5 | C22: 174003.5855 | D22: 0.0815 | E22: 2 | F22: 14470.23604 | G22: 188473.8215 | H22: 468378.9522 | I22: 279905.1307 | J22: 425828.5158 | K22: 237354.6943 | L22: 386428.2811 | M22: 197954.4596
A23: 6 | C23: 188473.8215 | D23: 0.079 | E23: 2 | F23: 15183.49818 | G23: 203657.3197 | H23: 496481.6893 | I23: 292824.3696 | J23: 442861.6565 | K23: 239204.3368 | L23: 394156.8467 | M23: 190499.5271
A24: 7 | C24: 203657.3197 | D24: 0.0765 | E24: 2 | F24: 15877.74834 | G24: 219535.068 | H24: 526270.5906 | I24: 306735.5226 | J24: 460576.1227 | K24: 241041.0547 | L24: 402039.9837 | M24: 182504.9157
A25: 8 | C25: 219535.068 | D25: 0.074 | E25: 2 | F25: 16546.13854 | G25: 236081.2066 | H25: 557846.8261 | I25: 321765.6195 | J25: 478999.1676 | K25: 242917.9611 | L25: 410080.7834 | M25: 173999.5768
A26: 9 | C26: 236081.2066 | D26: 0.0725 | E26: 2 | F26: 17426.11294 | G26: 253507.3195 | H26: 591317.6357 | I26: 337810.3162 | J26: 498159.1343 | K26: 244651.8149 | L26: 418282.399 | M26: 164775.0795
A27: 10 | C27: 253507.3195 | D27: 0.0725 | E27: 2 | F27: 18712.40513 | G27: 272219.7246 | H27: 626796.6938 | I27: 354576.9692 | J27: 518085.4997 | K27: 245865.7751 | L27: 426648.047 | M27: 154428.3224
A28: 11 | C28: 272219.7246 | D28: 0.0725 | E28: 2 | F28: 20093.64377 | G28: 292313.3684 | H28: 664404.4954 | I28: 372091.127 | J28: 538808.9197 | K28: 246495.5513 | L28: 435181.0079 | M28: 142867.6396
A29: 12 | C29: 292313.3684 | D29: 0.0725 | E29: 2 | F29: 21576.83724 | G29: 313890.2056 | H29: 704268.7651 | I29: 390378.5595 | J29: 560361.2765 | K29: 246471.0709 | L29: 443884.6281 | M29: 129994.4225
A30: 13 | C30: 313890.2056 | D30: 0.0725 | E30: 2 | F30: 23169.51126 | G30: 337059.7169 | H30: 746524.8911 | I30: 409465.1742 | J30: 582775.7276 | K30: 245716.0107 | L30: 452762.3207 | M30: 115702.6038
A31: 14 | C31: 337059.7169 | D31: 0.0725 | E31: 2 | F31: 24879.74701 | G31: 361939.4639 | H31: 791316.3845 | I31: 429376.9206 | J31: 606086.7567 | K31: 244147.2928 | L31: 461817.5671 | M31: 99878.10318
A32: 15 | C32: 361939.4639 | D32: 0.0725 | E32: 2 | F32: 26716.22221 | G32: 388655.6861 | H32: 838795.3676 | I32: 450139.6815 | J32: 630330.2269 | K32: 241674.5408 | L32: 471053.9184 | M32: =L32-$G32 -> 82398.23231
H34: 0.06 | J34: 0.04 | L34: 0.02
A35: CHIP Value | H35: Home | I35: Remaining | J35: Home | K35: Remaining | L35: Home | M35: Remaining
A36: Year | C36: Jan 1 Cost | D36: Interest Rate | E36: Int. Accum. Factor | F36: Yearly Interest | G36: Accumulated Cost | H36: Value | I36: Home Equity | J36: Value | K36: Home Equity | L36: Value | M36: Home Equity
A37: 0 | D37: =D17 -> 0.0815 | G37: 137000 | H37: =H17 -> 350000 | I37: =H37-$G37 -> 213000 | J37: =J17 -> 350000 | K37: =J37-$G37 -> 213000 | L37: =L17 -> 350000 | M37: =L37-$G37 -> 213000
A38: 1 | C38: =G37 -> 137000 | D38: =D18 -> 0.0815 | E38: =IF($I$1=1,1,IF($I$1=2,2,IF($I$1=3,4,IF($I$1=4,12,0)))) -> 2 | G38: 146387 | H38: =H37*(1+$H$14) -> 371000 | I38: =H38-$G38 -> 224613 | J38: =J37*(1+$J$14) -> 364000 | K38: =J38-$G38 -> 217613 | L38: =L37*(1+$L$14) -> 357000 | M38: 210613
A39: 2 | C39: =G38 -> 146387 | D39: 0.0865 | E39: 2 | G39: 157162 | H39: 393260 | I39: =H39-$G39 -> 236098 | J39: 378560 | K39: =J39-$G39 -> 221398 | L39: 364140 | M39: 206978
A40: 3 | C40: 157162 | D40: 0.0865 | E40: 2 | G40: 168893 | H40: 416855.6 | I40: =H40-$G40 -> 247962.6 | J40: 393702.4 | K40: 224809.4 | L40: 371422.8 | M40: 202529.8
A41: 4 | C41: 168893 | D41: 0.084 | E41: 2 | G41: 181246 | H41: 441866.936 | I41: 260620.936 | J41: 409450.496 | K41: 228204.496 | L41: 378851.256 | M41: 197605.256
A42: 5 | C42: 181246 | D42: 0.0815 | E42: 2 | G42: 194205 | H42: 468378.9522 | I42: =H42-$G42 -> 274173.9522 | J42: 425828.5158 | K42: =J42-$G42 -> 231623.5158 | L42: 386428.2811 | M42: 192223.2811
A43: 6 | C43: 194205 | D43: 0.079 | E43: 2 | G43: 207748 | H43: 496481.6893 | I43: 288733.6893 | J43: 442861.6565 | K43: 235113.6565 | L43: 394156.8467 | M43: 186408.8467
A44: 7 | C44: 207748 | D44: 0.0765 | E44: 2 | G44: 221845 | H44: 526270.5906 | I44: 304425.5906 | J44: 460576.1227 | K44: 238731.1227 | L44: 402039.9837 | M44: 180194.9837
A45: 8 | C45: 221845 | D45: 0.074 | E45: 2 | G45: 236458 | H45: 557846.8261 | I45: 321388.8261 | J45: 478999.1676 | K45: 242541.1676 | L45: 410080.7834 | M45: 173622.7834
A46: 9 | C46: 236458 | D46: 0.0725 | E46: 2 | G46: 253507 | H46: 591317.6357 | I46: 337810.6357 | J46: 498159.1343 | K46: 244652.1343 | L46: 418282.399 | M46: 164775.399
A47: 10 | C47: 253507 | D47: 0.0725 | E47: 2 | G47: 272220 | H47: 626796.6938 | I47: 354576.6938 | J47: 518085.4997 | K47: 245865.4997 | L47: 426648.047 | M47: 154428.047
A48: 11 | C48: 272220 | D48: 0.0725 | E48: 2 | F48: =G48-C48 -> -272220 | H48: 664404.4954 | I48: 664404.4954 | J48: 538808.9197 | K48: 538808.9197 | L48: 435181.0079 | M48: 435181.0079
A49: 12 | C49: 0 | D49: 0.0725 | E49: 2 | F49: =G49-C49 -> 0 | H49: 704268.7651 | I49: 704268.7651 | J49: 560361.2765 | K49: 560361.2765 | L49: 443884.6281 | M49: 443884.6281
A50: 13 | C50: 0 | D50: 0.0725 | E50: 2 | F50: =G50-C50 -> 0 | H50: 746524.8911 | I50: 746524.8911 | J50: 582775.7276 | K50: 582775.7276 | L50: 452762.3207 | M50: 452762.3207
A51: 14 | C51: 0 | D51: 0.0725 | E51: 2 | F51: =G51-C51 -> 0 | H51: 791316.3845 | I51: 791316.3845 | J51: 606086.7567 | K51: 606086.7567 | L51: 461817.5671 | M51: 461817.5671
A52: 15 | D52: 0.0725 | E52: 2 | G52: 388656 | H52: 838795.3676 | I52: 450139.3676 | J52: 630330.2269 | K52: 241674.2269 | L52: 471053.9184 | M52: 82397.91841
A55: Payback of AF
A56: Year | C56: AF Principle Remaining | D56: Interest Rate | E56: Int. Accum. Factor | F56: Yearly Interest | G56: Payment Periods | H56: Monthly Payments | I56: Yearly Payments | J56: Interest Eligible Payments
A57: 0 | C57: =G37-G17 -> 12096 | D57: =D37 -> 0.0815
A58: 1 | C58: 11095.9131 | D58: 0.0815 | E58: =IF($I$1=1,1,IF($I$1=2,2,IF($I$1=3,4,IF($I$1=4,12,0)))) -> 2 | F58: =(((1+(D58/E58))^E58)*(C57-J58))-(C57-J58) -> 934.8078831 | G58: =IF(C11>11,11,C11) -> 11 | H58: 171 | I58: =G58*H58 -> 1881 | J58: =H58*5 -> 855
A59: 2 | C59: 9915.163651 | D59: 0.0865 | E59: 2 | F59: =(((1+(D59/E59))^E59)*(C58-J59))-(C58-J59) -> 889.8838851 | G59: =IF($C$11>(G58+12),12,($C$11-G58)) -> 12 | H59: =H58 -> 171 | I59: =G59*H59 -> 2052 | J59: =I59/2 -> 1026
A60: 3 | C60: 8633.877897 | D60: 0.0865 | E60: 2 | F60: =(((1+(D60/E60))^E60)*(C59-J60))-(C59-J60) -> 785.540392 | G60: =IF($C$11>(SUM($G$58:G59)+12),12,($C$11-SUM($G$58:G59))) -> 12 | H60: =H59 -> 171 | I60: 2052 | J60: 1026
A61: 4 | C61: 7242.414548 | D61: 0.084 | E61: 2 | F61: =(((1+(D61/E61))^E61)*(C60-J61))-(C60-J61) -> 652.4820399 | G61: =IF($C$11>(SUM($G$58:G60)+12),12,($C$11-SUM($G$58:G60))) -> 12 | H61: 171 | I61: 2052 | J61: 1026
A62: 5 | C62: 5731.178505 | D62: 0.0815 | E62: 2 | F62: 516.9605306 | G62: =IF($C$11>(SUM($G$58:G61)+12),12,($C$11-SUM($G$58:G61))) -> 12 | H62: 171 | I62: =G62*H62 -> 2052 | J62: 1026
A63: 6 | C63: 4090.680327 | D63: 0.079 | E63: 2 | F63: 379.0503567 | G63: =IF($C$11>(SUM($G$58:G62)+12),12,($C$11-SUM($G$58:G62))) -> 12 | H63: 171 | I63: 2052 | J63: 1026
A64: 7 | C64: 2309.931985 | D64: 0.0765 | E64: 2 | F64: =(((1+(D64/E64))^E64)*(C63-J64))-(C63-J64) -> 238.9318639 | G64: =IF($C$11>(SUM($G$58:G63)+12),12,($C$11-SUM($G$58:G63))) -> 12 | H64: 171 | I64: 2052 | J64: 1026
A65: 8 | C65: 376.7934438 | D65: 0.074 | E65: 2 | F65: 96.76866978 | G65: =IF($C$11>(SUM($G$58:G64)+12),12,($C$11-SUM($G$58:G64))) -> 12 | H65: 171 | I65: 2052 | J65: 1026
A66: 9 | C66: -0.319492048 | D66: 0.0725 | E66: 2 | F66: =(((1+(D66/E66))^E66)*(C65-J66))-(C65-J66) -> 8.879347777 | G66: =IF($C$11>(SUM($G$58:G65)+12),12,($C$11-SUM($G$58:G65))) -> 3 | H66: 171 | I66: 513 | J66: 256.5
A67: 10 | C67: 0.2753827586 | D67: 0.0725 | E67: 2 | G67: =IF($C$11>(SUM($G$58:G66)+12),12,($C$11-SUM($G$58:G66))) -> 0
A68: 11 | C68: -292313.3684 | D68: 0.0725 | E68: 2 | G68: =IF($C$11>(SUM($G$58:G67)+12),12,($C$11-SUM($G$58:G67))) -> 0
A69: 12 | C69: -313890.2056 | D69: 0.0725 | E69: 2 | G69: =IF($C$11>(SUM($G$58:G68)+12),12,($C$11-SUM($G$58:G68))) -> 0
A70: 13 | C70: -337059.7169 | D70: 0.0725 | E70: 2 | G70: =IF($C$11>(SUM($G$58:G69)+12),12,($C$11-SUM($G$58:G69))) -> 0
A71: 14 | C71: -361939.4639 | D71: 0.0725 | E71: 2 | G71: =IF($C$11>(SUM($G$58:G70)+12),12,($C$11-SUM($G$58:G70))) -> 0
A72: 15 | C72: 0.3138991228 | D72: 0.0725 | E72: 2 | G72: =IF($C$11>(SUM($G$58:G71)+12),12,($C$11-SUM($G$58:G71))) -> 0
A87: Rate | B87: 0.086 | D87: Additional Finance Portion | H87: HIP Max Portion
A88: Principle | B88: 178275 | C88: Month | D88: AF Interest | E88: Remaining | F88: Accumulated | G88: Accum Interest | H88: Payments | I88: Interest | J88: Remaining | K88: Accum Interest
A89: Value after Year 1 | B89: =(B88*(1+(B87/2))^2) -> 193936.2805 | C89: 1 | E89: =B93 -> 18105 | F89: =E89 -> 18105 | G89: =D89 -> 0 | H89: 0 | I89: =B88*(B87/12) -> 1277.6375 | J89: =I89+B88 -> 179552.6375 | K89: =I89 -> 1277.6375
A90: Interest per Month | B90: =(B89-B88)/12 -> 1305.106706 | C90: 2 | E90: =F89-$B$94 -> 17850 | F90: =E90 -> 17850 | G90: =D90+G89 -> 0 | H90: 0 | I90: =J89*($B$87/12) -> 1286.793902 | J90: =I90+J89 -> 180839.4314 | K90: =I90+K89 -> 2564.431402
C91: 3 | E91: 17595 | F91: =E91 -> 17595 | G91: =D91+G90 -> 0 | H91: 0 | I91: 1296.015925 | J91: =I91+J90 -> 182135.4473 | K91: =I91+K90 -> 3860.447327
A92: AF Portion | B92: 24552 | C92: 4 | E92: 17340 | F92: 17340 | G92: 0 | H92: 0 | I92: 1305.304039 | J92: 183440.7514 | K92: 5165.751366
A93: Total AF Payment | B93: =B94*B95 -> 18105 | C93: 5 | E93: 17085 | F93: 17085 | G93: 0 | H93: 0 | I93: 1314.658718 | J93: 184755.4101 | K93: 6480.410084
A94: Monthly Payment | B94: 255 | C94: 6 | E94: 16830 | F94: 16830 | G94: 0 | H94: 0 | I94: 1324.080439 | J94: 186079.4905 | K94: 7804.490523
A95: Payment Periods | B95: 71 | C95: 7 | E95: 16575 | F95: 16575 | G95: 0 | H95: 0 | I95: 1333.569682 | J95: 187413.0602 | K95: 9138.060205
C96: 8 | E96: 16320 | F96: 16320 | G96: 0 | H96: 0 | I96: 1343.126931 | J96: 188756.1871 | K96: 10481.18714
C97: 9 | E97: 16065 | F97: 16065 | G97: 0 | H97: 0 | I97: 1352.752674 | J97: 190108.9398 | K97: 11833.93981
C98: 10 | E98: 15810 | F98: 15810 | G98: 0 | H98: 0 | I98: 1362.447402 | J98: 191471.3872 | K98: 13196.38721
C99: 11 | E99: 15555 | F99: 15555 | G99: 0 | H99: 0 | I99: 1372.211608 | J99: 192843.5988 | K99: 14568.59882
C100: 12 | E100: 15300 | F100: 15300 | G100: 0 | H100: 0 | I100: 1382.045792 | J100: 194225.6446 | K100: 15950.64461
C101: 13 | E101: =F100 -> 15300 | F101: 15300 | G101: 0 | H101: 0 | I101: 1391.950453 | J101: 195617.5951 | K101: 17342.59507
C102: 14 | E102: =F101 -> 15300 | F102: 15300 | G102: 0 | H102: 0 | I102: 1401.926098 | J102: 197019.5212 | K102: 18744.52116
C103: 15 | E103: 15300 | F103: 15300 | G103: 0 | H103: 0 | I103: 1411.973235 | J103: 198431.4944 | K103: 20156.4944
C104: 16 | E104: 15300 | F104: 15300 | G104: 0 | H104: 0 | I104: 1422.092377 | J104: 199853.5868 | K104: 21578.58678
C105: 17 | E105: 15300 | F105: 15300 | G105: 0 | H105: 0 | I105: 1432.284039 | J105: 201285.8708 | K105: 23010.87081
C106: 18 | E106: 15300 | F106: 15300 | G106: 0 | H106: 0 | I106: 1442.548741 | J106: 202728.4196 | K106: 24453.41956
C107: 19 | E107: 15300 | F107: 15300 | G107: 0 | H107: 0 | I107: 1452.887007 | J107: 204181.3066 | K107: 25906.30656
C108: 20 | E108: 15300 | F108: 15300 | G108: 0 | H108: 0 | I108: 1463.299364 | J108: 205644.6059 | K108: 27369.60593
C109: 21 | E109: 15300 | F109: 15300 | G109: 0 | H109: 0 | I109: 1473.786342 | J109: 207118.3923 | K109: 28843.39227
C110: 22 | E110: 15300 | F110: 15300 | G110: 0 | H110: 0 | I110: 1484.348478 | J110: 208602.7407 | K110: 30327.74075
C111: 23 | E111: 15300 | F111: 15300 | G111: 0 | H111: 0 | I111: 1494.986309 | J111: 210097.7271 | K111: 31822.72705
C112: 24 | E112: 15300 | F112: 15300 | G112: 0 | H112: 0 | I112: 1505.700377 | J112: 211603.4274 | K112: 33328.42743
C113: 25 | E113: 15300 | F113: 15300 | G113: 0 | H113: 0 | I113: 1516.49123 | J113: 213119.9187 | K113: 34844.91866
C114: 26 | E114: 15300 | F114: 15300 | G114: 0 | H114: 0 | I114: 1527.359417 | J114: 214647.2781 | K114: 36372.27808
C115: 27 | E115: 15300 | F115: 15300 | G115: 0 | H115: 0 | I115: 1538.305493 | J115: 216185.5836 | K115: 37910.58357
C116: 28 | E116: 15300 | F116: 15300 | G116: 0 | H116: 0 | I116: 1549.330016 | J116: 217734.9136 | K116: 39459.91359
C117: 29 | E117: 15300 | F117: 15300 | G117: 0 | H117: 0 | I117: 1560.433547 | J117: 219295.3471 | K117: 41020.34713
C118: 30 | E118: 15300 | F118: 15300 | G118: 0 | H118: 0 | I118: 1571.616654 | J118: 220866.9638 | K118: 42591.96379
C119: 31 | E119: 15300 | F119: 15300 | G119: 0 | H119: 0 | I119: 1582.879907 | J119: 222449.8437 | K119: 44174.8437
C120: 32 | E120: 15300 | F120: 15300 | G120: 0 | H120: 0 | I120: 1594.22388 | J120: 224044.0676 | K120: 45769.06758
C121: 33 | E121: 15300 | F121: 15300 | G121: 0 | H121: 0 | I121: 1605.649151 | J121: 225649.7167 | K121: 47374.71673
C122: 34 | E122: 15300 | F122: 15300 | G122: 0 | H122: 0 | I122: =J121*($B$87/12) -> 1617.156303 | J122: 227266.873 | K122: 48991.87303
C123: 35 | E123: 15300 | F123: 15300 | G123: 0 | H123: 0 | I123: 1628.745923 | J123: 228895.619 | K123: 50620.61895
C124: 36 | E124: 15300 | F124: 15300 | G124: 0 | H124: 0 | I124: 1640.418603 | J124: 230536.0376 | K124: 52261.03756
C125: 37 | E125: 15300 | F125: 15300 | G125: 0 | H125: 0 | I125: 1652.174936 | J125: 232188.2125 | K125: 53913.21249
C126: 38 | E126: 15300 | F126: 15300 | G126: 0 | H126: 0 | I126: 1664.015523 | J126: 233852.228 | K126: 55577.22802
C127: 39 | E127: 15300 | F127: 15300 | G127: 0 | H127: 0 | I127: 1675.940967 | J127: 235528.169 | K127: 57253.16898
C128: 40 | E128: 15300 | F128: 15300 | G128: 0 | H128: 0 | I128: 1687.951878 | J128: 237216.1209 | K128: 58941.12086
C129: 41 | E129: 15300 | F129: 15300 | G129: 0 | H129: 0 | I129: 1700.048866 | J129: 238916.1697 | K129: 60641.16973
C130: 42 | E130: 15300 | F130: 15300 | G130: 0 | H130: 0 | I130: 1712.23255 | J130: 240628.4023 | K130: 62353.40228
C131: 43 | E131: 15300 | F131: 15300 | G131: 0 | H131: 0 | I131: 1724.50355 | J131: 242352.9058 | K131: 64077.90583
C132: 44 | E132: 15300 | F132: 15300 | G132: 0 | H132: 0 | I132: 1736.862492 | J132: 244089.7683 | K132: 65814.76832
C133: 45 | E133: 15300 | F133: 15300 | G133: 0 | H133: 0 | I133: 1749.310006 | J133: 245839.0783 | K133: 67564.07832
C134: 46 | E134: 15300 | F134: 15300 | G134: 0 | H134: 0 | I134: 1761.846728 | J134: 247600.9251 | K134: 69325.92505
C135: 47 | E135: 15300 | F135: 15300 | G135: 0 | H135: 0 | I135: 1774.473296 | J135: 249375.3983 | K135: 71100.39835
C136: 48 | E136: 15300 | F136: 15300 | G136: 0 | H136: 0 | I136: 1787.190355 | J136: 251162.5887 | K136: 72887.5887
C137: 49 | E137: 15300 | F137: 15300 | G137: 0 | H137: 0 | I137: 1799.998552 | J137: 252962.5873 | K137: 74687.58726
C138: 50 | E138: 15300 | F138: 15300 | G138: 0 | H138: 0 | I138: 1812.898542 | J138: 254775.4858 | K138: 76500.4858
C139: 51 | E139: 15300 | F139: 15300 | G139: 0 | H139: 0 | I139: 1825.890982 | J139: 256601.3768 | K139: 78326.37678
C140: 52 | E140: 15300 | F140: 15300 | G140: 0 | H140: 0 | I140: 1838.976534 | J140: 258440.3533 | K140: 80165.35331
C141: 53 | E141: 15300 | F141: 15300 | G141: 0 | H141: 0 | I141: 1852.155865 | J141: 260292.5092 | K141: 82017.50918
C142: 54 | E142: 15300 | F142: 15300 | G142: 0 | H142: 0 | I142: 1865.429649 | J142: 262157.9388 | K142: 83882.93883
C143: 55 | E143: 15300 | F143: 15300 | G143: 0 | H143: 0 | I143: 1878.798562 | J143: 264036.7374 | K143: 85761.73739
C144: 56 | E144: 15300 | F144: 15300 | G144: 0 | H144: 0 | I144: 1892.263285 | J144: 265929.0007 | K144: 87654.00067
C145: 57 | E145: 15300 | F145: 15300 | G145: 0 | H145: 0 | I145: 1905.824505 | J145: 267834.8252 | K145: 89559.82518
C146: 58 | E146: 15300 | F146: 15300 | G146: 0 | H146: 0 | I146: 1919.482914 | J146: 269754.3081 | K146: 91479.30809
C147: 59 | E147: 15300 | F147: 15300 | G147: 0 | H147: 0 | I147: 1933.239208 | J147: 271687.5473 | K147: 93412.5473
C148: 60 | E148: 15300 | F148: 15300 | G148: 0 | H148: 0 | I148: 1947.094089 | J148: 273634.6414 | K148: 95359.64139
C149: 61 | E149: 15300 | F149: 15300 | G149: 0 | H149: 0 | I149: 1961.048263 | J149: 275595.6897 | K149: 97320.68965
C150: 62 | E150: 15300 | F150: 15300 | G150: 0 | H150: 0 | I150: 1975.102443 | J150: 277570.7921 | K150: 99295.79209
C151: 63 | E151: 15300 | F151: 15300 | G151: 0 | H151: 0 | I151: 1989.257343 | J151: 279560.0494 | K151: 101285.0494
C152: 64 | E152: 15300 | F152: 15300 | G152: 0 | H152: 0 | I152: 2003.513688 | J152: 281563.5631 | K152: 103288.5631
C153: 65 | E153: 15300 | F153: 15300 | G153: 0 | H153: 0 | I153: 2017.872202 | J153: 283581.4353 | K153: 105306.4353
C154: 66 | E154: 15300 | F154: 15300 | G154: 0 | H154: 0 | I154: =J153*($B$87/12) -> 2032.33362 | J154: 285613.7689 | K154: 107338.7689
C155: 67 | E155: 15300 | F155: =E155 -> 15300 | G155: =D155+G154 -> 0 | H155: 0 | I155: 2046.898677 | J155: =I155+J154 -> 287660.6676 | K155: =I155+K154 -> 109385.6676
C156: 68 | E156: 15300 | F156: 15300 | G156: 0 | H156: 0 | I156: 2061.568118 | J156: 289722.2357 | K156: 111447.2357
C157: 69 | E157: 15300 | F157: 15300 | G157: 0 | H157: 0 | I157: 2076.342689 | J157: 291798.5784 | K157: 113523.5784
C158: 70 | E158: 15300 | F158: 15300 | G158: 0 | H158: 0 | I158: 2091.223145 | J158: 293889.8016 | K158: 115614.8016
C159: 71 | E159: 15300 | F159: 15300 | G159: 0 | H159: 0 | I159: 2106.210245 | J159: 295996.0118 | K159: 117721.0118
C160: 72 | E160: 15300 | F160: 15300 | G160: 0 | H160: 0 | I160: 2121.304751 | J160: 298117.3166 | K160: 119842.3166
C161: 73 | E161: 15300 | F161: 15300 | G161: 0 | H161: 0 | I161: 2136.507435 | J161: 300253.824 | K161: 121978.824
C162: 74 | E162: 15300 | F162: 15300 | G162: 0 | H162: 0 | I162: 2151.819072 | J162: 302405.6431 | K162: 124130.6431
C163: 75 | E163: 15300 | F163: 15300 | G163: 0 | H163: 0 | I163: 2167.240442 | J163: 304572.8835 | K163: 126297.8835
C164: 76 | E164: 15300 | F164: 15300 | G164: 0 | H164: 0 | I164: 2182.772332 | J164: 306755.6559 | K164: 128480.6559
C165: 77 | E165: 15300 | F165: 15300 | G165: 0 | H165: 0 | I165: 2198.415534 | J165: 308954.0714 | K165: 130679.0714
C166: 78 | E166: =F165 -> 15300 | F166: 15300 | G166: 0 | H166: 0 | I166: 2214.170845 | J166: 311168.2422 | K166: 132893.2422
C167: 79 | E167: 15300 | F167: 15300 | G167: 0 | H167: 0 | I167: 2230.039069 | J167: 313398.2813 | K167: 135123.2813
C168: 80 | E168: 15300 | F168: 15300 | G168: 0 | H168: 0 | I168: 2246.021016 | J168: 315644.3023 | K168: 137369.3023
C169: 81 | E169: 15300 | F169: 15300 | G169: 0 | H169: 0 | I169: 2262.1175 | J169: 317906.4198 | K169: 139631.4198
C170: 82 | E170: 15300 | F170: 15300 | G170: 0 | H170: 0 | I170: 2278.329342 | J170: 320184.7492 | K170: 141909.7492
C171: 83 | E171: 15300 | F171: 15300 | G171: 0 | H171: 0 | I171: 2294.657369 | J171: 322479.4065 | K171: 144204.4065
C172: 84 | E172: 15300 | F172: 15300 | G172: 0 | H172: 0 | I172: 2311.102413 | J172: 324790.5089 | K172: 146515.5089
C173: 85 | E173: 15300 | F173: 15300 | G173: 0 | H173: 0 | I173: 2327.665314 | J173: 327118.1743 | K173: 148843.1743
C174: 86 | E174: 15300 | F174: 15300 | G174: 0 | H174: 0 | I174: 2344.346916 | J174: 329462.5212 | K174: 151187.5212
C175: 87 | E175: 15300 | F175: 15300 | G175: 0 | H175: 0 | I175: 2361.148068 | J175: 331823.6692 | K175: 153548.6692
C176: 88 | E176: 15300 | F176: 15300 | G176: 0 | H176: 0 | I176: 2378.06963 | J176: 334201.7389 | K176: 155926.7389
C177: 89 | E177: 15300 | F177: 15300 | G177: 0 | H177: 0 | I177: 2395.112462 | J177: 336596.8513 | K177: 158321.8513
C178: 90 | E178: 15300 | F178: 15300 | G178: 0 | H178: 0 | I178: 2412.277435 | J178: 339009.1288 | K178: 160734.1288
C179: 91 | E179: 15300 | F179: 15300 | G179: 0 | H179: 0 | I179: 2429.565423 | J179: 341438.6942 | K179: 163163.6942
C180: 92 | E180: 15300 | F180: 15300 | G180: 0 | H180: 0 | I180: 2446.977308 | J180: 343885.6715 | K180: 165610.6715
C181: 93 | E181: 15300 | F181: 15300 | G181: 0 | H181: 0 | I181: 2464.513979 | J181: 346350.1855 | K181: 168075.1855
C182: 94 | E182: 15300 | F182: 15300 | G182: 0 | H182: 0 | I182: 2482.176329 | J182: 348832.3618 | K182: 170557.3618
C183: 95 | E183: 15300 | F183: 15300 | G183: 0 | H183: 0 | I183: 2499.96526 | J183: 351332.3271 | K183: 173057.3271
C184: 96 | E184: 15300 | F184: 15300 | G184: 0 | H184: 0 | I184: 2517.881677 | J184: 353850.2087 | K184: 175575.2087
C185: 97 | E185: 15300 | F185: 15300 | G185: 0 | H185: 0 | I185: 2535.926496 | J185: 356386.1352 | K185: 178111.1352
C186: 98 | E186: 15300 | F186: 15300 | G186: 0 | H186: 0 | I186: =J185*($B$87/12) -> 2554.100636 | J186: 358940.2359 | K186: 180665.2359
C187: 99 | E187: 15300 | F187: 15300 | G187: 0 | H187: 0 | I187: 2572.405024 | J187: 361512.6409 | K187: 183237.6409
C188: 100 | E188: 15300 | F188: 15300 | G188: 0 | H188: 0 | I188: 2590.840593 | J188: 364103.4815 | K188: 185828.4815
C189: 101 | E189: 15300 | F189: 15300 | G189: 0 | H189: 0 | I189: 2609.408284 | J189: 366712.8898 | K189: 188437.8898
C190: 102 | E190: 15300 | F190: 15300 | G190: 0 | H190: 0 | I190: 2628.109043 | J190: 369340.9988 | K190: 191065.9988
C191: 103 | E191: 15300 | F191: 15300 | G191: 0 | H191: 0 | I191: 2646.943825 | J191: 371987.9426 | K191: 193712.9426
C192: 104 | E192: 15300 | F192: 15300 | G192: 0 | H192: 0 | I192: 2665.913589 | J192: 374653.8562 | K192: 196378.8562
C193: 105 | E193: 15300 | F193: 15300 | G193: 0 | H193: 0 | I193: 2685.019303 | J193: 377338.8755 | K193: 199063.8755
